fUSD/lending_fUSD_20251212
["ID","MTS","AMOUNT","RATE_DAILY","PERIOD"]
[398319895,1765536644418,-500.0,0.00038356,30]
[398319896,1765536644427,-500.0,0.00038356,30]
[398319897,1765536644439,-500.54,0.00038356,30]
[398319898,1765536644449,-730.61,0.00038356,30]
[398319899,1765536644458,-1039.78,0.00038356,30]
[398319900,1765536644468,-500.0,0.00038356,30]
[398319901,1765536644477,-615.84,0.00038356,30]
[398319902,1765536644486,-500.0,0.00038356,30]
[398319903,1765536644496,-500.0,0.00038356,30]
[398319904,1765536644505,-500.0,0.00038356,30]
[398319905,1765536644515,-500.0,0.00038356,30]
[398319906,1765536644525,-647.65,0.00038356,30]
[398319907,1765536644534,-500.0,0.00038356,30]
[398319908,1765536644543,-906.8,0.00038356,30]
[398319909,1765536644553,-500.0,0.00038356,30]
[398319910,1765536644562,-551.86,0.00038356,30]
[398319911,1765536644571,-1472.62,0.00038356,30]
[398319912,1765536644580,-500.0,0.00038356,30]
[398319913,1765536644590,-500.0,0.00038356,30]
[398319914,1765536644599,-500.0,0.00038356,30]
[398319915,1765536644609,-500.0,0.00038356,5]
[398319916,1765536644618,-500.0,0.00038356,30]
[398319917,1765536644627,-500.0,0.00038356,30]
[398319918,1765536644636,-500.0,0.00038356,30]
[398319919,1765536644646,-500.0,0.00038356,30]
[398319920,1765536644655,-500.0,0.00038356,30]
[398319921,1765536644665,-500.0,0.00038356,30]
[398319922,1765536644674,-500.0,0.00038356,30]
[398319923,1765536644683,-2737.4,0.00038356,30]
[398319924,1765536644693,-1372.17,0.00038356,30]
[398319925,1765536644702,-500.0,0.00038356,30]
[398319926,1765536644711,-500.0,0.00038356,30]
[398319927,1765536644728,-500.0,0.00038356,30]
[398319928,1765536644737,-500.0,0.00038356,30]
[398319929,1765536644747,-500.0,0.00038356,30]
[398319930,1765536644756,-500.0,0.00038356,30]
[398319931,1765536644766,-500.0,0.00038356,30]
[398319932,1765536644776,-500.0,0.00038356,30]
[398319933,1765536644785,-500.0,0.00038356,30]
[398319934,1765536644794,-500.0,0.00038356,30]
[398319935,1765536644804,-500.0,0.00038356,30]
[398319936,1765536644813,-500.0,0.00038356,30]
[398319937,1765536644822,-2430.46,0.00038356,30]
[398319938,1765536644831,-500.0,0.00038356,30]
[398319939,1765536644840,-500.0,0.00038356,30]
[398319940,1765536644849,-500.0,0.00038356,30]
[398319941,1765536644858,-500.0,0.00038356,30]
[398319942,1765536644867,-500.0,0.00038356,30]
[398319943,1765536644876,-500.0,0.00038356,30]
[398319944,1765536644886,-1139.75,0.00038356,30]
[398319945,1765536644895,-500.0,0.00038356,30]
[398319946,1765536644904,-500.0,0.00038356,30]
[398319947,1765536644913,-500.0,0.00038356,30]
[398319948,1765536644922,-500.0,0.00038356,30]
[398319949,1765536644931,-500.0,0.00038356,30]
[398319950,1765536644941,-500.0,0.00038356,30]
[398319951,1765536644950,-500.0,0.00038356,30]
[398319952,1765536644959,-800.13,0.00038356,30]
[398319953,1765536644968,-500.0,0.00038356,30]
[398319954,1765536644977,-1445.96,0.00038356,30]
[398319955,1765536644986,-500.0,0.00038356,30]
[398319956,1765536644995,-500.0,0.00038356,30]
[398319957,1765536645004,-918.45,0.00038356,30]
[398319958,1765536645013,-1070.7,0.00038356,30]
[398319959,1765536645023,-500.0,0.00038356,30]
[398319960,1765536645031,-500.0,0.00038356,30]
[398319961,1765536645040,-500.0,0.00038356,30]
[398319962,1765536645050,-500.0,0.00038356,30]
[398319963,1765536645059,-2437.96,0.00038356,30]
[398319964,1765536645068,-500.0,0.00038356,30]
[398319965,1765536645078,-500.0,0.00038356,30]
[398319966,1765536645087,-500.0,0.00038356,30]
[398319967,1765536645097,-500.0,0.00038356,30]
[398319968,1765536645107,-500.0,0.00038356,30]
[398319969,1765536645116,-592.87,0.00038356,30]
[398319970,1765536645126,-500.0,0.00038356,30]
[398319971,1765536645135,-500.0,0.00038356,30]
[398319972,1765536645144,-500.0,0.00038356,30]
[398319973,1765536645154,-500.0,0.00038356,30]
[398319974,1765536645163,-500.0,0.00038356,30]
[398319975,1765536645172,-500.0,0.00038356,30]
[398319976,1765536645182,-500.0,0.00038356,30]
[398319977,1765536645191,-500.0,0.00038356,30]
[398319978,1765536645200,-500.0,0.00038356,30]
[398319979,1765536645210,-500.0,0.00038356,30]
[398319980,1765536645219,-542.04,0.00038356,30]
[398319981,1765536645229,-1588.94,0.00038356,30]
[398319982,1765536645238,-500.0,0.00038356,30]
[398319983,1765536645248,-500.0,0.00038356,30]
[398319984,1765536645257,-537.45,0.00038356,30]
[398319985,1765536645266,-500.0,0.00038356,30]
[398319986,1765536645276,-500.0,0.00038356,30]
[398319987,1765536645286,-500.0,0.00038356,30]
[398319988,1765536645295,-522.96,0.00038356,30]
[398319989,1765536645304,-500.0,0.00038356,30]
[398319990,1765536645314,-1096.52,0.00038356,30]
[398319991,1765536645324,-500.0,0.00038356,30]
[398319992,1765536645334,-500.0,0.00038356,30]
[398319993,1765536645343,-637.83,0.00038356,30]
[398319994,1765536645352,-500.0,0.00038356,30]
[398319995,1765536645361,-698.44,0.00038356,30]
[398319996,1765536645371,-222.00473531,0.00038356,30]
[398319997,1765536645380,-500.0,0.00038356,30]
[398319998,1765536645390,-500.0,0.00038356,30]
[398319999,1765536645399,-500.0,0.00038356,30]
[398320000,1765536645410,-660.2,0.00038356,30]
[398320001,1765536645419,-500.0,0.00038356,30]
[398320002,1765536645429,-500.0,0.00038356,30]
[398320003,1765536645438,-500.0,0.00038356,30]
[398320004,1765536645447,-500.0,0.00038356,30]
[398320005,1765536645457,-500.0,0.00038356,30]
[398320006,1765536645467,-1065.82,0.00038356,30]
[398320007,1765536645476,-500.0,0.00038356,30]
[398320008,1765536645485,-2027.17,0.00038356,30]
[398320009,1765536645495,-500.0,0.00038356,30]
[398320010,1765536645504,-500.0,0.00038356,30]
[398320011,1765536645515,-500.0,0.00038356,30]
[398320012,1765536645525,-500.0,0.00038356,30]
[398320013,1765536645534,-500.0,0.00038356,30]
[398320014,1765536645544,-500.0,0.00038356,30]
[398320015,1765536645554,-500.0,0.00038356,30]
[398320016,1765536645563,-663.04,0.00038356,30]
[398320017,1765536645573,-500.0,0.00038356,30]
[398320018,1765536645583,-500.0,0.00038356,30]
[398320019,1765536645593,-500.0,0.00038356,30]
[398320020,1765536645603,-500.0,0.00038356,30]
[398320021,1765536645612,-502.31104552,0.00038356,30]
[398320022,1765536645622,-500.0,0.00038356,30]
[398320023,1765536645632,-500.0,0.00038356,30]
[398320024,1765536645641,-500.0,0.00038356,30]
[398320025,1765536645651,-500.0,0.00038356,30]
[398320026,1765536645661,-500.0,0.00038356,30]
[398320027,1765536645670,-500.0,0.00038356,30]
[398320028,1765536645680,-500.0,0.00038356,30]
[398320029,1765536645690,-500.0,0.00038356,30]
[398320030,1765536645700,-500.0,0.00038356,30]
[398320031,1765536645710,-500.0,0.00038356,30]
[398320032,1765536645726,-500.0,0.00038356,30]
[398320033,1765536645736,-500.0,0.00038356,30]
[398320034,1765536645746,-1034.23,0.00038356,30]
[398320035,1765536645755,-1526.42,0.00038356,30]
[398320036,1765536645766,-500.0,0.00038356,30]
[398320037,1765536645775,-500.0,0.00038356,30]
[398320038,1765536645785,-500.0,0.00038356,30]
[398320039,1765536645796,-500.0,0.00038356,30]
[398320040,1765536645806,-500.0,0.00038356,30]
[398320041,1765536645816,-604.96,0.00038356,30]
[398320042,1765536645826,-500.0,0.00038356,30]
[398320043,1765536645835,-500.0,0.00038356,30]
[398320044,1765536645845,-500.0,0.00038356,30]
[398320045,1765536645854,-500.0,0.00038356,30]
[398320046,1765536645864,-500.0,0.00038356,30]
[398320047,1765536645873,-500.0,0.00038356,30]
[398320048,1765536645882,-500.0,0.00038356,30]
[398320049,1765536645892,-500.0,0.00038356,30]
[398320050,1765536645901,-500.0,0.00038356,30]
[398320051,1765536645910,-500.0,0.00038356,30]
[398320052,1765536645920,-500.0,0.00038356,30]
[398320053,1765536645929,-500.0,0.00038356,30]
[398320054,1765536645938,-500.0,0.00038356,30]
[398320055,1765536645947,-500.0,0.00038356,30]
[398320056,1765536645957,-500.0,0.00038356,30]
[398320057,1765536645966,-500.0,0.00038356,30]
[398320058,1765536645976,-500.0,0.00038356,30]
[398320059,1765536645985,-526.63,0.00038356,30]
[398320060,1765536645995,-500.0,0.00038356,30]
[398320061,1765536646004,-1577.6,0.00038356,30]
[398320062,1765536646015,-500.0,0.00038356,30]
[398320063,1765536646030,-500.0,0.00038356,30]
[398320064,1765536646039,-500.0,0.00038356,30]
[398320065,1765536646049,-500.0,0.00038356,30]
[398320066,1765536646058,-1132.8,0.00038356,30]
[398320067,1765536646068,-570.07,0.00038356,30]
[398320068,1765536646077,-705.52,0.00038356,30]
[398320069,1765536646087,-961.9,0.00038356,30]
[398320070,1765536646096,-500.0,0.00038356,30]
[398320071,1765536646106,-735.82,0.00038356,30]
[398320072,1765536646116,-749.42,0.00038356,30]
[398320073,1765536646127,-1191.88,0.00038356,30]
[398320074,1765536646137,-522.47,0.00038356,30]
[398320075,1765536646147,-500.0,0.00038356,30]
[398320076,1765536646156,-499.0434098,0.00038356,30]
[398320077,1765536646166,-4298.84,0.00038356,30]
[398320078,1765536646175,-974.16,0.00038356,30]
[398320079,1765536646184,-500.0,0.00038356,30]
[398320080,1765536646194,-482.37723426,0.00038356,30]
[398320081,1765536646203,-1095.96,0.00038356,30]
[398320082,1765536646212,-500.0,0.00038356,30]
[398320083,1765536646223,-500.0,0.00038356,30]
[398320084,1765536646232,-500.0,0.00038356,30]
[398320085,1765536646241,-500.0,0.00038356,30]
[398320086,1765536646251,-500.0,0.00038356,30]
[398320087,1765536646260,-938.71,0.00038356,30]
[398320089,1765536646269,-640.37274102,0.00038356,30]
[398320091,1765536646279,-1397.58,0.00038356,30]
[398320092,1765536646288,-500.0,0.00038356,30]
[398320094,1765536646297,-500.0,0.00038356,30]
[398320095,1765536646306,-500.0,0.00038356,30]
[398320096,1765536646316,-500.0,0.00038356,30]
[398320097,1765536646325,-500.0,0.00038356,30]
[398320098,1765536646334,-2368.57,0.00038356,30]
[398320099,1765536646343,-500.0,0.00038356,30]
[398320100,1765536646353,-403.92767363,0.00038356,30]
[398320101,1765536646361,-500.0,0.00038356,30]
[398320102,1765536646371,-500.0,0.00038356,30]
[398320103,1765536646381,-500.0,0.00038356,30]
[398320104,1765536646390,-508.91,0.00038356,30]
[398320105,1765536646400,-500.0,0.00038356,30]
[398320106,1765536646409,-500.0,0.00038356,30]
[398320107,1765536646418,-1181.83,0.00038356,30]
[398320108,1765536646427,-500.0,0.00038356,30]
[398320109,1765536646436,-500.0,0.00038356,30]
[398320110,1765536646446,-500.0,0.00038356,30]
[398320111,1765536646454,-2107.36,0.00038356,30]
[398320112,1765536646463,-164.84450677,0.00038356,30]
[398320113,1765536646587,-335.15549323,0.00038356,30]
[398320114,1765536646597,-591.32,0.00038356,30]
[398320115,1765536646607,-14.17016944,0.00038356,30]
[398320116,1765536646620,-485.82983056,0.00038356,30]
[398320117,1765536646631,-500.0,0.00038356,30]
[398320118,1765536646641,-1407.05,0.00038356,30]
[398320119,1765536646651,-500.0,0.00038356,30]
[398320120,1765536646660,-500.0,0.00038356,30]
[398320121,1765536646670,-500.0,0.00038356,30]
[398320122,1765536646679,-500.0,0.00038356,30]
[398320123,1765536646688,-500.0,0.00038356,30]
[398320124,1765536646697,-712.24,0.00038356,30]
[398320125,1765536646707,-500.0,0.00038356,30]
[398320126,1765536646717,-500.0,0.00038356,30]
[398320127,1765536646730,-500.0,0.00038356,30]
[398320128,1765536646739,-1000.77,0.00038356,30]
[398320129,1765536646748,-500.0,0.00038356,30]
[398320130,1765536646758,-500.0,0.00038356,30]
[398320131,1765536646767,-500.0,0.00038356,30]
[398320132,1765536646776,-500.0,0.00038356,30]
[398320133,1765536646786,-500.0,0.00038356,30]
[398320134,1765536646795,-500.0,0.00038356,30]
[398320135,1765536646806,-578.91,0.00038356,30]
[398320136,1765536646817,-1480.01,0.00038356,30]
[398320137,1765536646827,-796.45,0.00038356,30]
[398320138,1765536646836,-538.64,0.00038356,30]
[398320139,1765536646845,-1121.9,0.00038356,30]
[398320140,1765536646855,-875.09,0.00038356,30]
[398320141,1765536646864,-500.0,0.00038356,30]
[398320142,1765536646873,-500.0,0.00038356,30]
[398320143,1765536646883,-500.0,0.00038356,30]
[398320144,1765536646892,-1342.46,0.00038356,30]
[398320145,1765536646901,-500.0,0.00038356,30]
[398320146,1765536646910,-500.0,0.00038356,30]
[398320147,1765536646919,-500.0,0.00038356,30]
[398320148,1765536646929,-500.0,0.00038356,30]
[398320149,1765536646938,-500.0,0.00038356,30]
[398320150,1765536646948,-500.0,0.00038356,30]
[398320151,1765536646957,-500.0,0.00038356,30]
[398320152,1765536646966,-500.0,0.00038356,30]
[398320153,1765536646975,-500.0,0.00038356,30]
[398320154,1765536646984,-500.0,0.00038356,30]
[398320155,1765536646993,-551.7,0.00038356,30]
[398320156,1765536647002,-500.0,0.00038356,7]
[398320157,1765536647011,-207.84600413,0.00038356,30]
[398320158,1765536647020,-500.0,0.00038356,30]
[398320159,1765536647031,-500.0,0.00038356,30]
[398320160,1765536647039,-500.0,0.00038356,30]
[398320161,1765536647048,-500.0,0.00038356,30]
[398320162,1765536647057,-891.01,0.00038356,30]
[398320163,1765536647067,-500.0,0.00038356,30]
[398320164,1765536647076,-500.0,0.00038356,30]
[398320165,1765536647085,-1631.76,0.00038356,30]
[398320166,1765536647095,-500.62175094,0.00038356,30]
[398320167,1765536647104,-500.0,0.00038356,30]
[398320168,1765536647113,-511.07,0.00038356,30]
[398320169,1765536647122,-500.0,0.00038356,30]
[398320170,1765536647132,-500.0,0.00038356,30]
[398320171,1765536647141,-935.63,0.00038356,30]
[398320172,1765536647150,-500.0,0.00038356,30]
[398320173,1765536647159,-500.0,0.00038356,30]
[398320174,1765536647168,-500.0,0.00038356,30]
[398320175,1765536647178,-500.0,0.00038356,30]
[398320176,1765536647187,-1213.86,0.00038356,30]
[398320177,1765536647197,-500.0,0.00038356,30]
[398320178,1765536647206,-713.52,0.00038356,30]
[398320179,1765536647215,-500.0,0.00038356,30]
[398320180,1765536647224,-502.92106066,0.00038356,30]
[398320181,1765536647234,-999.59,0.00038356,30]
[398320182,1765536647243,-500.0,0.00038356,30]
[398320183,1765536647252,-500.0,0.00038356,30]
[398320184,1765536647261,-762.67,0.00038356,30]
[398320185,1765536647271,-500.0,0.00038356,30]
[398320186,1765536647280,-500.0,0.00038356,30]
[398320187,1765536647289,-500.0,0.00038356,30]
[398320188,1765536647299,-922.65,0.00038356,30]
[398320189,1765536647308,-500.0,0.00038356,30]
[398320190,1765536647317,-500.0,0.00038356,30]
[398320191,1765536647326,-1139.73,0.00038356,30]
[398320192,1765536647336,-500.0,0.00038356,30]
[398320193,1765536647346,-960.26,0.00038356,30]
[398320194,1765536647355,-500.11816473,0.00038356,30]
[398320195,1765536647366,-500.0,0.00038356,30]
[398320196,1765536647376,-921.07,0.00038356,30]
[398320197,1765536647385,-500.0,0.00038356,30]
[398320198,1765536647394,-824.08,0.00038356,30]
[398320199,1765536647403,-500.0,0.00038356,30]
[398320200,1765536647412,-500.0,0.00038356,30]
[398320201,1765536647422,-500.0,0.00038356,30]
[398320202,1765536647431,-1836.88,0.00038356,30]
[398320203,1765536647441,-500.0,0.00038356,30]
[398320204,1765536647450,-500.0,0.00038356,30]
[398320205,1765536647460,-500.0,0.00038356,30]
[398320206,1765536647469,-240.33024744,0.00038356,30]
[398320207,1765536647477,-500.0,0.00038356,30]
[398320208,1765536647487,-500.0,0.00038356,30]
[398320209,1765536647496,-500.0,0.00038356,30]
[398320210,1765536647505,-500.0,0.00038356,30]
[398320211,1765536647514,-807.06,0.00038356,30]
[398320212,1765536647524,-500.0,0.00038356,30]
[398320213,1765536647533,-1304.95,0.00038356,30]
[398320214,1765536647543,-500.0,0.00038356,30]
[398320215,1765536647552,-500.0,0.00038356,30]
[398320216,1765536647562,-1005.91,0.00038356,30]
[398320217,1765536647571,-500.0,0.00038356,30]
[398320218,1765536647580,-500.0,0.00038356,30]
[398320219,1765536647590,-1051.07,0.00038356,30]
[398320220,1765536647599,-500.0,0.00038356,30]
[398320221,1765536647608,-500.0,0.00038356,30]
[398320222,1765536647617,-500.0,0.00038356,30]
[398320223,1765536647627,-500.0,0.00038356,30]
[398320224,1765536647636,-929.4,0.00038356,30]
[398320225,1765536647645,-500.0,0.00038356,30]
[398320226,1765536647654,-500.0,0.00038356,30]
[398320227,1765536647663,-500.0,0.00038356,30]
[398320228,1765536647672,-500.0,0.00038356,30]
[398320229,1765536647681,-500.0,0.00038356,30]
[398320230,1765536647690,-500.0,0.00038356,30]
[398320231,1765536647699,-500.0,0.00038356,30]
[398320232,1765536647708,-500.61983641,0.00038356,30]
[398320233,1765536647717,-500.0,0.00038356,30]
[398320234,1765536647729,-500.0,0.00038356,30]
[398320235,1765536647738,-500.0,0.00038356,30]
[398320236,1765536647748,-500.0,0.00038356,30]
[398320237,1765536647758,-621.09,0.00038356,30]
[398320238,1765536647766,-500.0,0.00038356,30]
[398320239,1765536647776,-500.0,0.00038356,30]
[398320240,1765536647785,-500.0,0.00038356,30]
[398320241,1765536647796,-500.0,0.00038356,30]
[398320242,1765536647805,-1874.12,0.00038356,30]
[398320243,1765536647815,-500.0,0.00038356,30]
[398320244,1765536647824,-500.0,0.00038356,30]
[398320245,1765536647833,-500.0,0.00038356,30]
[398320246,1765536647842,-500.0,0.00038356,30]
[398320247,1765536647851,-500.0,0.00038356,30]
[398320248,1765536647860,-500.0,0.00038356,30]
[398320249,1765536647870,-500.0,0.00038356,30]
[398320250,1765536647880,-521.95,0.00038356,30]
[398320251,1765536647889,-500.0,0.00038356,30]
[398320252,1765536647898,-500.0,0.00038356,30]
[398320253,1765536647908,-500.0,0.00038356,30]
[398320254,1765536647917,-500.0,0.00038356,25]
[398320255,1765536647927,-500.0,0.00038356,30]
[398320256,1765536647937,-578.01,0.00038356,30]
[398320257,1765536647946,-500.0,0.00038356,12]
[398320258,1765536647955,-500.0,0.00038356,30]
[398320259,1765536647964,-500.0,0.00038356,30]
[398320260,1765536647974,-500.0,0.00038356,30]
[398320261,1765536647983,-701.87,0.00038356,30]
[398320262,1765536647993,-667.26,0.00038356,7]
[398320263,1765536648002,-500.0,0.00038356,30]
[398320264,1765536648011,-532.36,0.00038356,30]
[398320265,1765536648021,-500.0,0.00038356,30]
[398320266,1765536648031,-500.0,0.00038356,30]
[398320267,1765536648041,-890.33,0.00038356,30]
[398320268,1765536648050,-500.0,0.00038356,30]
[398320269,1765536648059,-619.34,0.00038356,30]
[398320270,1765536648069,-500.0,0.00038356,30]
[398320271,1765536648078,-500.0,0.00038356,30]
[398320272,1765536648087,-500.0,0.00038356,30]
[398320273,1765536648096,-666.66,0.00038356,30]
[398320274,1765536648106,-500.0,0.00038356,30]
[398320275,1765536648115,-679.95,0.00038356,30]
[398320276,1765536648125,-500.0,0.00038356,30]
[398320277,1765536648134,-500.0,0.00038356,30]
[398320278,1765536648143,-846.97,0.00038356,30]
[398320279,1765536648153,-1622.6,0.00038356,30]
[398320280,1765536648162,-500.0,0.00038356,30]
[398320281,1765536648171,-500.0,0.00038356,30]
[398320282,1765536648182,-500.0,0.00038356,30]
[398320283,1765536648447,-500.0,0.00038356,30]
[398320284,1765536648456,-500.0,0.00038356,30]
[398320285,1765536648466,-500.0,0.00038356,30]
[398320286,1765536648476,-500.0,0.00038356,30]
[398320287,1765536648485,-500.0,0.00038356,30]
[398320288,1765536648494,-1634.93,0.00038356,30]
[398320289,1765536648504,-263.23095613,0.00038356,30]
[398320290,1765536648513,-1372.09,0.00038356,30]
[398320291,1765536648523,-867.67,0.00038356,30]
[398320292,1765536648532,-500.0,0.00038356,30]
[398320293,1765536648542,-500.0,0.00038356,30]
[398320294,1765536648552,-500.0,0.00038356,30]
[398320295,1765536648562,-500.0,0.00038356,30]
[398320296,1765536648571,-500.0,0.00038356,30]
[398320297,1765536648581,-500.0,0.00038356,30]
[398320298,1765536648590,-630.63,0.00038356,30]
[398320299,1765536648600,-500.0,0.00038356,30]
[398320300,1765536648609,-500.0,0.00038356,30]
[398320301,1765536648618,-500.0,0.00038356,30]
[398320302,1765536648627,-1368.81,0.00038356,30]
[398320303,1765536648637,-500.0,0.00038356,30]
[398320304,1765536648646,-500.0,0.00038356,30]
[398320305,1765536648655,-500.0,0.00038356,30]
[398320306,1765536648665,-626.64,0.00038356,30]
[398320307,1765536648675,-500.0,0.00038356,30]
[398320308,1765536648686,-500.0,0.00038356,30]
[398320309,1765536648695,-500.0,0.00038356,30]
[398320310,1765536648704,-523.1234528,0.00038356,30]
[398320311,1765536648714,-500.0,0.00038356,30]
[398320312,1765536648727,-500.0,0.00038356,30]
[398320313,1765536648737,-500.0,0.00038356,30]
[398320314,1765536648746,-1191.7,0.00038356,30]
[398320315,1765536648756,-500.0,0.00038356,30]
[398320316,1765536648766,-2251.55,0.00038356,30]
[398320317,1765536648775,-500.0,0.00038356,30]
[398320318,1765536648785,-1877.84,0.00038356,30]
[398320319,1765536648795,-500.0,0.00038356,30]
[398320320,1765536648807,-554.25,0.00038356,30]
[398320321,1765536648816,-500.0,0.00038356,30]
[398320322,1765536648826,-500.0,0.00038356,15]
[398320323,1765536648835,-206.84025854,0.00038356,30]
[398320324,1765536648845,-500.0,0.00038356,30]
[398320325,1765536648855,-500.0,0.00038356,30]
[398320326,1765536648864,-501.23712391,0.00038356,30]
[398320327,1765536648873,-500.0,0.00038356,30]
[398320328,1765536648883,-500.0,0.00038356,30]
[398320329,1765536648892,-1066.72,0.00038356,30]
[398320330,1765536648901,-500.0,0.00038356,30]
[398320331,1765536648910,-500.0,0.00038356,30]
[398320332,1765536648920,-500.0,0.00038356,30]
[398320333,1765536648929,-500.0,0.00038356,30]
[398320334,1765536648939,-500.0,0.00038356,30]
[398320335,1765536648948,-620.95,0.00038356,30]
[398320336,1765536648957,-500.0,0.00038356,30]
[398320337,1765536648966,-500.0,0.00038356,30]
[398320338,1765536648975,-1109.61,0.00038356,30]
[398320339,1765536648985,-500.0,0.00038356,30]
[398320340,1765536648995,-500.0,0.00038356,30]
[398320341,1765536649004,-579.22050475,0.00038356,30]
[398320342,1765536649014,-2254.72,0.00038356,30]
[398320343,1765536649023,-500.0,0.00038356,30]
[398320344,1765536649032,-500.0,0.00038356,30]
[398320345,1765536649042,-500.0,0.00038356,30]
[398320346,1765536649051,-500.0,0.00038356,30]
[398320347,1765536649060,-500.0,0.00038356,30]
[398320348,1765536649070,-500.0,0.00038356,30]
[398320349,1765536649079,-1451.06,0.00038356,30]
[398320350,1765536649089,-510.54174895,0.00038356,30]
[398320351,1765536649099,-500.0,0.00038356,30]
[398320352,1765536649108,-500.0,0.00038356,30]
[398320353,1765536649118,-524.1,0.00038356,30]
[398320354,1765536649128,-500.0,0.00038356,30]
[398320355,1765536649138,-500.0,0.00038356,30]
[398320356,1765536649148,-490.73741434,0.00038356,30]
[398320357,1765536649158,-500.0,0.00038356,30]
[398320358,1765536649167,-535.99,0.00038356,30]
[398320359,1765536649176,-1647.96,0.00038356,30]
[398320360,1765536649186,-500.0,0.00038356,30]
[398320361,1765536649196,-500.0,0.00038356,30]
[398320362,1765536649206,-500.0,0.00038356,30]
[398320363,1765536649215,-500.0,0.00038356,30]
[398320364,1765536649224,-500.0,0.00038356,30]
[398320365,1765536649233,-1607.35,0.00038356,30]
[398320366,1765536649243,-500.0,0.00038356,30]
[398320367,1765536649253,-500.0,0.00038356,30]
[398320368,1765536649262,-500.0,0.00038356,30]
[398320369,1765536649271,-500.0,0.00038356,30]
[398320370,1765536649280,-1890.33,0.00038356,30]
[398320371,1765536649290,-500.0,0.00038356,30]
[398320372,1765536649299,-702.35,0.00038356,30]
[398320373,1765536649309,-500.0,0.00038356,30]
[398320374,1765536649318,-1448.32,0.00038356,30]
[398320375,1765536649327,-1632.19,0.00038356,30]
[398320376,1765536649338,-500.0,0.00038356,30]
[398320377,1765536649347,-500.0,0.00038356,30]
[398320378,1765536649356,-876.83,0.00038356,30]
[398320379,1765536649366,-832.79,0.00038356,30]
[398320380,1765536649375,-500.0,0.00038356,30]
[398320381,1765536649384,-500.0,0.00038356,30]
[398320382,1765536649393,-500.0,0.00038356,30]
[398320383,1765536649403,-623.5,0.00038356,30]
[398320384,1765536649412,-500.0,0.00038356,30]
[398320385,1765536649421,-500.0,0.00038356,30]
[398320386,1765536649431,-2761.6,0.00038356,30]
[398320387,1765536649440,-500.0,0.00038356,30]
[398320388,1765536649449,-604.56,0.00038356,30]
[398320389,1765536649460,-769.61,0.00038356,30]
[398320390,1765536649469,-1014.43,0.00038356,30]
[398320391,1765536649478,-500.0,0.00038356,30]
[398320392,1765536649487,-500.0,0.00038356,30]
[398320393,1765536649496,-500.0,0.00038356,30]
[398320394,1765536649505,-500.0,0.00038356,30]
[398320395,1765536649515,-500.0,0.00038356,30]
[398320396,1765536649524,-500.0,0.00038356,30]
[398320397,1765536649534,-500.0,0.00038356,30]